fUSD/lending_fUSD_20260412
["ID","MTS","AMOUNT","RATE_DAILY","PERIOD"]
[420348338,1776007850207,-1945.2,0.00038356,15]
[420348339,1776007850217,-499.855,0.00038356,2]
[420348340,1776007850231,-500.0,0.00038356,15]
[420348341,1776007850241,-2249.08,0.00038356,15]
[420348342,1776007850252,-500.0,0.00038356,15]
[420348343,1776007850277,-578.87,0.00038356,15]
[420348344,1776007850309,-500.0,0.00038356,15]
[420348345,1776007850318,-568.67,0.00038356,15]
[420348346,1776007850346,-988.98,0.00038356,15]
[420348347,1776007850418,-793.1,0.00038356,15]
[420348348,1776007850457,-500.0,0.00038356,15]
[420348349,1776007850468,-819.88,0.00038356,15]
[420348350,1776007850488,-500.0,0.00038356,15]
[420348351,1776007850517,-1029.95,0.00038356,15]
[420348352,1776007850530,-500.0,0.00038356,15]
[420348353,1776007850558,-656.79,0.00038356,15]
[420348354,1776007850570,-1714.82,0.00038356,15]
[420348355,1776007850585,-586.56,0.00038356,15]
[420348356,1776007850613,-500.0,0.00038356,15]
[420348357,1776007850622,-2026.17,0.00038356,15]
[420348358,1776007850659,-502.28,0.00038356,15]
[420348359,1776007850669,-500.0,0.00038356,15]
[420348360,1776007850689,-500.0,0.00038356,15]
[420348361,1776007850698,-500.0,0.00038356,15]
[420348362,1776007850710,-559.94,0.00038356,15]
[420348363,1776007850724,-500.0,0.00038356,15]
[420348364,1776007850735,-598.35,0.00038356,15]
[420348365,1776007850749,-2616.88,0.00038356,15]
[420348366,1776007850764,-1481.28,0.00038356,15]
[420348367,1776007850773,-500.0,0.00038356,15]
[420348368,1776007850791,-500.0,0.00038356,15]
[420348369,1776007850823,-785.71,0.00038356,15]
[420348370,1776007850837,-407.16908571,0.00038356,15]
[420348371,1776007850859,-500.0,0.00038356,15]
[420348372,1776007850869,-862.11,0.00038356,15]
[420348373,1776007850883,-248.53149352,0.00038356,15]
[420348374,1776007850960,-668.88,0.00038356,15]
[420348375,1776007850998,-500.0,0.00038356,15]
[420348376,1776007851011,-500.0,0.00038356,15]
[420348377,1776007851026,-500.0,0.00038356,15]
[420348378,1776007851039,-531.41,0.00038356,15]
[420348379,1776007851050,-858.02,0.00038356,15]
[420348380,1776007851066,-500.0,0.00038356,15]
[420348381,1776007851076,-500.0,0.00038356,15]
[420348382,1776007851092,-2071.76,0.00038356,15]
[420348383,1776007851103,-1240.69,0.00038356,15]
[420348384,1776007851115,-500.0,0.00038356,15]
[420348385,1776007851133,-410.93213249,0.00038356,15]
[420348386,1776007851143,-1300.35,0.00038356,15]
[420348387,1776007851159,-833.95,0.00038356,15]
[420348388,1776007851172,-500.0,0.00038356,15]
[420348389,1776007851182,-500.0,0.00038356,15]
[420348390,1776007851191,-500.0,0.00038356,15]
[420348391,1776007851212,-500.80824152,0.00038356,15]
[420348392,1776007851229,-500.0,0.00038356,15]
[420348393,1776007851239,-1597.38,0.00038356,15]
[420348394,1776007851268,-1808.57,0.00038356,15]
[420348395,1776007851278,-500.0,0.00038356,15]
[420348396,1776007851296,-500.0,0.00038356,15]
[420348397,1776007851314,-500.0,0.00038356,15]
[420348398,1776007851326,-557.46,0.00038356,15]
[420348399,1776007851335,-500.0,0.00038356,15]
[420348400,1776007851355,-500.0,0.00038356,15]
[420348401,1776007851367,-1059.57,0.00038356,15]
[420348402,1776007851376,-1877.41,0.00038356,15]
[420348403,1776007851412,-500.0,0.00038356,15]
[420348404,1776007851422,-500.0,0.00038356,15]
[420348405,1776007851432,-500.0,0.00038356,15]
[420348406,1776007851442,-500.0,0.00038356,15]
[420348407,1776007851457,-500.0,0.00038356,15]
[420348408,1776007851466,-861.25,0.00038356,15]
[420348409,1776007851477,-669.85,0.00038356,15]
[420348410,1776007851495,-500.0,0.00038356,15]
[420348411,1776007851505,-601.6,0.00038356,15]
[420348412,1776007851514,-2487.75,0.00038356,15]
[420348413,1776007851528,-500.0,0.00038356,15]
[420348414,1776007851541,-805.32,0.00038356,15]
[420348415,1776007851551,-500.0,0.00038356,15]
[420348416,1776007851562,-1111.63,0.00038356,15]
[420348417,1776007851579,-500.0,0.00038356,15]
[420348418,1776007851592,-568.69,0.00038356,15]
[420348419,1776007851603,-500.0,0.00038356,15]
[420348420,1776007851613,-530.26,0.00038356,15]
[420348421,1776007851632,-500.0,0.00038356,15]
[420348422,1776007851642,-500.0,0.00038356,15]
[420348423,1776007851653,-500.0,0.00038356,15]
[420348424,1776007851663,-500.0,0.00038356,15]
[420348425,1776007851685,-1461.37,0.00038356,15]
[420348426,1776007851694,-500.0,0.00038356,15]
[420348427,1776007851707,-500.0,0.00038356,15]
[420348428,1776007851721,-500.0,0.00038356,15]
[420348429,1776007851745,-3024.77,0.00038356,15]
[420348430,1776007851757,-500.0,0.00038356,15]
[420348431,1776007851766,-500.0,0.00038356,15]
[420348432,1776007851791,-152.760432,0.00038356,15]
[420348433,1776007851802,-3337.71,0.00038356,15]
[420348434,1776007851815,-500.0,0.00038356,15]
[420348435,1776007851844,-500.0,0.00038356,15]
[420348436,1776007851854,-546.13,0.00038356,15]
[420348437,1776007851884,-546.38,0.00038356,2]
[420348438,1776007851894,-2087.24,0.00038356,15]
[420348439,1776007851907,-500.0,0.00038356,15]
[420348440,1776007851933,-500.0,0.00038356,15]
[420348441,1776007851942,-1295.9,0.00038356,15]
[420348442,1776007851958,-1939.84,0.00038356,15]
[420348443,1776007851970,-1153.96,0.00038356,15]
[420348444,1776007851980,-740.09,0.00038356,15]
[420348445,1776007851990,-726.88,0.00038356,15]
[420348446,1776007852002,-500.0,0.00038356,15]
[420348447,1776007852014,-500.0,0.00038356,15]
[420348448,1776007852025,-500.0,0.00038356,15]
[420348449,1776007852036,-500.0,0.00038356,15]
[420348450,1776007852057,-500.0,0.00038356,14]
[420348451,1776007852067,-500.0,0.00038356,15]
[420348452,1776007852077,-500.0,0.00038356,15]
[420348453,1776007852100,-500.0,0.00038356,15]
[420348454,1776007852109,-500.0,0.00038356,15]
[420348455,1776007852123,-500.0,0.00038356,15]
[420348456,1776007852140,-1206.14,0.00038356,15]
[420348457,1776007852152,-1463.86,0.00038356,15]
[420348458,1776007852163,-500.0,0.00038356,15]
[420348459,1776007852210,-843.31,0.00038356,15]
[420348460,1776007852233,-500.0,0.00038356,15]
[420348461,1776007852253,-1390.96,0.00038356,15]
[420348462,1776007852264,-500.0,0.00038356,15]
[420348463,1776007852280,-500.0,0.00038356,15]
[420348464,1776007852297,-500.0,0.00038356,15]
[420348465,1776007852306,-539.13,0.00038356,15]
[420348466,1776007852318,-500.0,0.00038356,15]
[420348467,1776007852360,-993.57,0.00038356,15]
[420348468,1776007852380,-500.0,0.00038356,15]
[420348469,1776007852449,-500.0,0.00038356,15]
[420348470,1776007852512,-500.0,0.00038356,15]
[420348471,1776007852522,-500.0,0.00038356,15]
[420348472,1776007852535,-500.0,0.00038356,15]
[420348473,1776007852563,-500.0,0.00038356,15]
[420348474,1776007852577,-880.78,0.00038356,15]
[420348475,1776007852622,-773.14,0.00038356,15]
[420348476,1776007852639,-500.0,0.00038356,15]
[420348477,1776007852648,-506.11,0.00038356,15]
[420348478,1776007852693,-222.31502834,0.00038356,15]
[420348479,1776007852814,-500.0,0.00038356,15]
[420348480,1776007852824,-1580.35,0.00038356,15]
[420348481,1776007852833,-616.03,0.00038356,15]
[420348482,1776007852847,-500.0,0.00038356,15]
[420348483,1776007852858,-507.55,0.00038356,15]
[420348484,1776007852877,-500.0,0.00038356,15]
[420348485,1776007852886,-500.0,0.00038356,15]
[420348486,1776007852897,-1573.86,0.00038356,15]
[420348487,1776007852910,-774.61,0.00038356,15]
[420348488,1776007852929,-500.0,0.00038356,15]
[420348489,1776007852938,-500.0,0.00038356,15]
[420348490,1776007852949,-1109.05,0.00038356,15]
[420348491,1776007852964,-500.0,0.00038356,15]
[420348492,1776007852974,-500.0,0.00038356,15]
[420348493,1776007852985,-500.0,0.00038356,15]
[420348494,1776007852995,-782.02,0.00038356,15]
[420348495,1776007853007,-536.57,0.00038356,15]
[420348496,1776007853018,-500.0,0.00038356,15]
[420348497,1776007853027,-500.0,0.00038356,15]
[420348498,1776007853037,-500.0,0.00038356,15]
[420348499,1776007853058,-500.0,0.00038356,15]
[420348500,1776007853067,-762.29,0.00038356,15]
[420348501,1776007853076,-500.0,0.00038356,15]
[420348502,1776007853093,-500.0,0.00038356,15]
[420348503,1776007853102,-500.0,0.00038356,15]
[420348504,1776007853112,-500.0,0.00038356,15]
[420348505,1776007853127,-500.0,0.00038356,15]
[420348506,1776007853143,-500.0,0.00038356,15]
[420348507,1776007853153,-500.0,0.00038356,15]
[420348508,1776007853166,-1364.54,0.00038356,15]
[420348509,1776007853179,-500.0,0.00038356,15]
[420348510,1776007853193,-500.0,0.00038356,15]
[420348511,1776007853209,-1500.24,0.00038356,15]
[420348512,1776007853226,-578.50058234,0.00038356,15]
[420348513,1776007853236,-959.61,0.00038356,15]
[420348514,1776007853247,-500.0,0.00038356,15]
[420348515,1776007853263,-859.08,0.00038356,15]
[420348516,1776007853296,-1816.48,0.00038356,15]
[420348517,1776007853314,-607.53080165,0.00038356,15]
[420348518,1776007853338,-1856.09,0.00038356,15]
[420348519,1776007853348,-500.0,0.00038356,15]
[420348520,1776007853366,-500.0,0.00038356,15]
[420348521,1776007853387,-500.0,0.00038356,15]
[420348522,1776007853432,-500.0,0.00038356,15]
[420348523,1776007853455,-500.0,0.00038356,15]
[420348524,1776007853465,-500.0,0.00038356,15]
[420348525,1776007853480,-500.0,0.00038356,15]
[420348526,1776007853523,-1743.1,0.00038356,15]
[420348527,1776007853545,-500.0,0.00038356,15]
[420348528,1776007853591,-500.0,0.00038356,15]
[420348529,1776007853615,-500.0,0.00038356,15]
[420348530,1776007853634,-310.2748394,0.00038356,15]
[420348531,1776007853668,-500.0,0.00038356,15]
[420348532,1776007853689,-500.0,0.00038356,15]
[420348533,1776007853704,-1443.42,0.00038356,15]
[420348534,1776007853714,-662.81,0.00038356,15]
[420348535,1776007853742,-1416.14,0.00038356,15]
[420348536,1776007853753,-3654.54,0.00038356,15]
[420348537,1776007853785,-500.0,0.00038356,15]
[420348538,1776007853795,-500.0,0.00038356,15]
[420348539,1776007853812,-602.88656648,0.00038356,15]
[420348540,1776007853824,-500.0,0.00038356,15]
[420348541,1776007853834,-500.0,0.00038356,15]
[420348542,1776007853851,-500.0,0.00038356,15]
[420348543,1776007853865,-500.0,0.00038356,15]
[420348544,1776007853875,-500.0,0.00038356,15]
[420348545,1776007853888,-758.47,0.00038356,15]
[420348546,1776007853904,-1014.5,0.00038356,15]
[420348547,1776007853915,-500.0,0.00038356,15]
[420348548,1776007853925,-1948.31,0.00038356,15]
[420348549,1776007853963,-1003.58,0.00038356,10]
[420348550,1776007853988,-500.0,0.00038356,15]
[420348551,1776007854004,-500.0,0.00038356,15]
[420348552,1776007854014,-500.0,0.00038356,15]
[420348553,1776007854028,-500.0,0.00038356,15]
[420348554,1776007854046,-694.9,0.00038356,15]
[420348555,1776007854056,-500.0,0.00038356,15]
[420348556,1776007854070,-544.03,0.00038356,15]
[420348557,1776007854089,-500.0,0.00038356,15]
[420348558,1776007854099,-500.0,0.00038356,15]
[420348559,1776007854112,-1402.3,0.00038356,15]
[420348560,1776007854130,-500.0,0.00038356,15]
[420348561,1776007854143,-500.0,0.00038356,15]
[420348562,1776007854152,-193.54291225,0.00038356,15]
[420348563,1776007854163,-1357.32,0.00038356,15]
[420348564,1776007854175,-500.0,0.00038356,15]
[420348565,1776007854187,-2087.83,0.00038356,15]
[420348566,1776007854212,-1176.49,0.00038356,15]
[420348567,1776007854223,-500.0,0.00038356,15]
[420348568,1776007854233,-500.0,0.00038356,15]
[420348569,1776007854257,-663.74,0.00038356,15]
[420348570,1776007854268,-500.0,0.00038356,15]
[420348571,1776007854278,-572.39111029,0.00038356,15]
[420348572,1776007854304,-500.0,0.00038356,15]
[420348573,1776007854314,-500.0,0.00038356,15]
[420348574,1776007854327,-237.60609707,0.00038356,15]
[420348575,1776007854339,-1440.87,0.00038356,15]
[420348576,1776007854350,-500.0,0.00038356,15]
[420348577,1776007854360,-500.0,0.00038356,15]
[420348578,1776007854372,-500.0,0.00038356,15]
[420348579,1776007854386,-500.0,0.00038356,15]
[420348580,1776007854396,-500.0,0.00038356,15]
[420348581,1776007854406,-2668.96,0.00038356,15]
[420348582,1776007854464,-1404.95,0.00038356,15]
[420348583,1776007854474,-568.32,0.00038356,15]
[420348584,1776007854494,-1203.52,0.00038356,15]
[420348585,1776007854507,-500.0,0.00038356,15]
[420348586,1776007854520,-500.0,0.00038356,15]
[420348587,1776007854531,-500.0,0.00038356,15]
[420348588,1776007854559,-500.0,0.00038356,15]
[420348589,1776007854575,-540.06,0.00038356,15]
[420348590,1776007854591,-500.0,0.00038356,15]
[420348591,1776007854619,-500.0,0.00038356,15]
[420348592,1776007854630,-500.0,0.00038356,15]
[420348593,1776007854672,-500.0,0.00038356,15]
[420348594,1776007854718,-589.75,0.00038356,15]
[420348595,1776007854755,-500.0,0.00038356,15]
[420348596,1776007854773,-500.0,0.00038356,15]
[420348597,1776007854819,-500.0,0.00038356,15]
[420348598,1776007854849,-500.0,0.00038356,15]
[420348599,1776007854870,-500.0,0.00038356,15]
[420348600,1776007854881,-1893.24,0.00038356,15]
[420348601,1776007854890,-500.0,0.00038356,15]
[420348602,1776007854902,-500.0,0.00038356,15]
[420348603,1776007854913,-500.0,0.00038356,15]
[420348604,1776007854923,-500.0,0.00038356,15]
[420348605,1776007854934,-1788.56,0.00038356,15]
[420348606,1776007854947,-1576.43,0.00038356,15]
[420348607,1776007854958,-2543.21,0.00038356,15]
[420348608,1776007854971,-500.0,0.00038356,15]
[420348609,1776007854993,-500.0,0.00038356,15]
[420348610,1776007855003,-500.0,0.00038356,15]
[420348611,1776007855017,-500.0,0.00038356,15]
[420348612,1776007855037,-500.0,0.00038356,15]
[420348613,1776007855046,-2121.75,0.00038356,15]
[420348614,1776007855070,-542.28,0.00038356,15]
[420348615,1776007855096,-500.0,0.00038356,15]
[420348616,1776007855104,-1280.58,0.00038356,15]
[420348617,1776007855114,-1624.95,0.00038356,15]
[420348618,1776007855137,-535.58,0.00038356,15]
[420348619,1776007855155,-215.53636279,0.00038356,15]
[420348620,1776007855166,-2395.74,0.00038356,15]
[420348621,1776007855177,-500.0,0.00038356,15]
[420348622,1776007855186,-500.0,0.00038356,15]
[420348623,1776007855195,-500.0,0.00038356,15]
[420348624,1776007855210,-408.0,0.00038356,15]
[420348625,1776007855220,-627.24,0.00038356,15]
[420348626,1776007855229,-500.0,0.00038356,15]
[420348627,1776007855242,-500.0,0.00038356,15]
[420348628,1776007855251,-1422.68,0.00038356,15]
[420348629,1776007855260,-1294.78,0.00038356,15]
[420348630,1776007855270,-1926.6,0.00038356,15]
[420348631,1776007855279,-697.45,0.00038356,15]
[420348632,1776007855290,-3092.58,0.00038356,15]
[420348633,1776007855302,-500.0,0.00038356,15]
[420348634,1776007855311,-500.0,0.00038356,15]
[420348635,1776007855320,-200.4342491,0.00038356,15]
[420348636,1776007855330,-500.0,0.00038356,15]
[420348637,1776007855341,-1136.08,0.00038356,10]
[420348638,1776007855351,-500.0,0.00038356,15]
[420348639,1776007855361,-1542.75,0.00038356,15]
[420348640,1776007855370,-666.59,0.00038356,15]
[420348641,1776007855383,-500.0,0.00038356,15]
[420348642,1776007855392,-500.0,0.00038356,15]
[420348643,1776007855401,-608.30411823,0.00038356,15]
[420348644,1776007855410,-500.0,0.00038356,15]
[420348645,1776007855419,-500.0,0.00038356,15]
[420348646,1776007855431,-500.0,0.00038356,15]
[420348647,1776007855440,-500.0,0.00038356,15]
[420348648,1776007855454,-500.0,0.00038356,15]
[420348649,1776007855464,-500.0,0.00038356,15]
[420348650,1776007855474,-1114.3,0.00038356,15]
[420348651,1776007855483,-500.0,0.00038356,15]
[420348652,1776007855496,-2601.06,0.00038356,15]
[420348653,1776007855506,-982.22,0.00038356,15]
[420348654,1776007855515,-500.0,0.00038356,15]
[420348655,1776007855524,-500.0,0.00038356,15]
[420348656,1776007855534,-524.56,0.00038356,15]
[420348657,1776007855545,-500.0,0.00038356,15]
[420348658,1776007855554,-500.0,0.00038356,15]
[420348659,1776007855563,-1074.24,0.00038356,15]
[420348660,1776007855573,-500.0,0.00038356,15]
[420348661,1776007855582,-500.0,0.00038356,15]
[420348662,1776007855594,-1244.39,0.00038356,15]
[420348663,1776007855603,-1736.14,0.00038356,15]
[420348664,1776007855612,-1068.56,0.00038356,15]
[420348665,1776007855622,-2177.79,0.00038356,15]
[420348666,1776007855633,-683.31,0.00038356,15]
[420348667,1776007855643,-500.0,0.00038356,15]
[420348668,1776007855651,-500.0,0.00038356,15]
[420348669,1776007855664,-500.0,0.00038356,15]
[420348670,1776007855696,-500.0,0.00038356,15]
[420348671,1776007855706,-500.0,0.00038356,15]
[420348672,1776007855719,-151.0,0.00038356,7]
[420348673,1776007855734,-2401.23,0.00038356,15]
[420348674,1776007855745,-720.53,0.00038356,15]
[420348675,1776007855764,-500.0,0.00038356,15]
[420348676,1776007855773,-500.0,0.00038356,15]
[420348677,1776007855782,-500.0,0.00038356,15]
[420348678,1776007855801,-500.0,0.00038356,15]
[420348679,1776007855815,-3277.95,0.00038356,15]
[420348680,1776007855831,-500.0,0.00038356,15]
[420348681,1776007855875,-2431.28,0.00038356,15]
[420348682,1776007855891,-2241.47,0.00038356,15]
[420348683,1776007855923,-500.0,0.00038356,15]
[420348684,1776007855934,-500.0,0.00038356,15]
[420348685,1776007855943,-3088.11,0.00038356,15]
[420348686,1776007855955,-1302.35,0.00038356,15]
[420348687,1776007855972,-500.0,0.00038356,15]
[420348688,1776007855982,-500.0,0.00038356,15]
[420348689,1776007855991,-500.0,0.00038356,15]
[420348690,1776007856016,-500.0,0.00038356,15]
[420348691,1776007856025,-713.09,0.00038356,15]
[420348692,1776007856034,-500.0,0.00038356,15]
[420348693,1776007856050,-659.47,0.00038356,15]
[420348694,1776007856059,-457.56621534,0.00038356,15]
[420348695,1776007856073,-500.0,0.00038356,15]
[420348696,1776007856083,-500.0,0.00038356,15]
[420348697,1776007856092,-500.0,0.00038356,15]
[420348698,1776007856101,-500.0,0.00038356,15]
[420348699,1776007856115,-658.14,0.00038356,15]
[420348700,1776007856127,-1756.75,0.00038356,15]
[420348701,1776007856138,-716.85,0.00038356,15]
[420348702,1776007856148,-500.0,0.00038356,15]
[420348703,1776007856158,-800.24,0.00038356,15]
[420348704,1776007856167,-500.0,0.00038356,15]
[420348705,1776007856175,-500.0,0.00038356,2]
[420348706,1776007856185,-500.0,0.00038356,15]
[420348707,1776007856195,-500.0,0.00038356,15]
[420348708,1776007856206,-500.0,0.00038356,15]
[420348709,1776007856215,-500.0,0.00038356,15]
[420348710,1776007856225,-500.0,0.00038356,15]
[420348711,1776007856235,-500.0,0.00038356,15]
[420348712,1776007856249,-3288.92,0.00038356,15]
[420348713,1776007856258,-500.0,0.00038356,15]
[420348714,1776007856268,-529.08,0.00038356,15]
[420348715,1776007856289,-500.0,0.00038356,15]
[420348716,1776007856299,-326.34631352,0.00038356,15]
[420348717,1776007856312,-500.0,0.00038356,15]
[420348718,1776007856322,-500.0,0.00038356,15]
[420348719,1776007856337,-2436.56,0.00038356,15]
[420348720,1776007856347,-500.0,0.00038356,15]
[420348721,1776007856366,-3549.64,0.00038356,15]
[420348722,1776007856378,-500.0,0.00038356,15]
[420348723,1776007856387,-871.17,0.00038356,15]
[420348724,1776007856415,-1000.0,0.00038356,15]
[420348725,1776007856424,-781.34,0.00038356,15]
[420348726,1776007856433,-1377.59,0.00038356,15]
[420348727,1776007856446,-500.0,0.00038356,15]
[420348728,1776007856468,-520.61,0.00038356,15]
[420348729,1776007856477,-500.0,0.00038356,15]
[420348730,1776007856491,-500.0,0.00038356,15]
[420348731,1776007856511,-983.37,0.00038356,15]
[420348732,1776007856521,-500.0,0.00038356,15]
[420348733,1776007856532,-500.0,0.00038356,15]
[420348734,1776007856552,-1006.54,0.00038356,15]
[420348735,1776007856562,-4145.92,0.00038356,15]
[420348736,1776007856574,-1931.54,0.00038356,15]
[420348737,1776007856588,-500.0,0.00038356,15]
[420348738,1776007856598,-695.87,0.00038356,15]
[420348739,1776007856615,-500.0,0.00038356,15]
[420348740,1776007856649,-701.5,0.00038356,15]
[420348741,1776007856659,-500.0,0.00038356,15]
[420348742,1776007856684,-300.0,0.00038356,2]
[420348743,1776007856699,-500.0,0.00038356,15]
[420348744,1776007856724,-1721.45,0.00038356,15]
[420348745,1776007856745,-500.0,0.00038356,15]
[420348746,1776007856765,-1264.95,0.00038356,15]
[420348747,1776007856790,-500.0,0.00038356,15]
[420348748,1776007856799,-500.0,0.00038356,15]
[420348749,1776007856848,-1175.25,0.00038356,15]
[420348750,1776007856876,-1268.13,0.00038356,15]
[420348751,1776007856887,-500.0,0.00038356,15]
[420348752,1776007856897,-2111.13,0.00038356,15]
[420348753,1776007856906,-500.0,0.00038356,15]
[420348754,1776007856947,-650.01,0.00038356,15]
[420348755,1776007856957,-500.0,0.00038356,15]
[420348756,1776007856966,-500.0,0.00038356,15]
[420348757,1776007856980,-727.93,0.00038356,15]
[420348758,1776007856998,-500.0,0.00038356,15]
[420348759,1776007857008,-500.0,0.00038356,15]
[420348760,1776007857018,-625.0,0.00038356,15]
[420348761,1776007857058,-545.29,0.00038356,15]
[420348762,1776007857069,-979.05,0.00038356,15]
[420348763,1776007857079,-627.37,0.00038356,15]
[420348764,1776007857095,-1258.66,0.00038356,15]
[420348765,1776007857116,-943.08,0.00038356,15]
[420348766,1776007857125,-2877.64,0.00038356,15]
[420348767,1776007857135,-500.0,0.00038356,15]
[420348768,1776007857150,-500.0,0.00038356,15]
[420348769,1776007857162,-5240.98,0.00038356,2]
[420348770,1776007857174,-1717.48,0.00038356,15]
[420348771,1776007857183,-500.0,0.00038356,15]
[420348772,1776007857193,-500.0,0.00038356,15]
[420348773,1776007857210,-500.0,0.00038356,15]
[420348774,1776007857220,-500.0,0.00038356,15]
[420348775,1776007857229,-2509.45,0.00038356,15]
[420348776,1776007857246,-500.0,0.00038356,15]
[420348777,1776007857258,-2722.4,0.00038356,15]
[420348778,1776007857268,-649.22896862,0.00038356,15]
[420348779,1776007857281,-558.9,0.00038356,15]
[420348780,1776007857293,-500.0,0.00038356,15]
[420348781,1776007857309,-500.0,0.00038356,15]
[420348782,1776007857319,-500.0,0.00038356,15]
[420348783,1776007857338,-500.0,0.00038356,15]
[420348784,1776007857349,-500.0,0.00038356,15]
[420348785,1776007857380,-42772.03,0.00038356,15]
[420348786,1776007857390,-500.0,0.00038356,15]
[420348787,1776007857416,-500.0,0.00038356,15]
[420348788,1776007857426,-1333.4,0.00038356,15]
[420348789,1776007857436,-2170.93,0.00038356,15]
[420348790,1776007857463,-2027.73,0.00038356,15]
[420348791,1776007857482,-1441.78,0.00038356,15]
[420348792,1776007857493,-1168.53,0.00038356,15]
[420348793,1776007857506,-1514.11,0.00038356,15]
[420348794,1776007857523,-1088.85,0.00038356,15]
[420348795,1776007857540,-500.0,0.00038356,15]
[420348796,1776007857551,-521.16315827,0.00038356,15]
[420348797,1776007857562,-617.98132111,0.00038356,15]
[420348798,1776007857576,-500.0,0.00038356,15]
[420348799,1776007857586,-448.79326287,0.00038356,15]
[420348800,1776007857612,-1213.8,0.00038356,15]
[420348801,1776007857621,-1032.22,0.00038356,15]
[420348802,1776007857655,-2051.64,0.00038356,15]
[420348803,1776007857739,-2088.68,0.00038356,15]
[420348804,1776007857750,-1091.35,0.00038356,15]
[420348805,1776007857760,-500.0,0.00038356,15]
[420348806,1776007857778,-56264.15,0.00038356,15]
[420348807,1776007857807,-528.26431734,0.00038356,15]
[420348808,1776007857817,-1443.96,0.00038356,15]
[420348809,1776007857836,-500.0,0.00038356,15]
[420348810,1776007857847,-500.0,0.00038356,15]
[420348811,1776007857868,-500.0,0.00038356,15]
[420348812,1776007857878,-500.0,0.00038356,15]
[420348813,1776007857898,-500.0,0.00038356,15]
[420348814,1776007857908,-561.53,0.00038356,15]
[420348815,1776007857930,-500.0,0.00038356,15]
[420348816,1776007857939,-516.19641823,0.00038356,15]
[420348817,1776007857953,-793.1,0.00038356,15]
[420348818,1776007857963,-500.0,0.00038356,15]
[420348819,1776007857976,-758.51,0.00038356,15]
[420348820,1776007857987,-2162.63,0.00038356,15]
[420348821,1776007858000,-632.28,0.00038356,15]
[420348822,1776007858024,-500.0,0.00038356,15]
[420348823,1776007858033,-500.0,0.00038356,15]
[420348824,1776007858042,-2453.47,0.00038356,15]
[420348825,1776007858064,-905.88,0.00038356,15]
[420348826,1776007858077,-500.0,0.00038356,15]
[420348827,1776007858087,-567.08,0.00038356,15]
[420348828,1776007858128,-1389.15,0.00038356,15]
[420348829,1776007858139,-500.0,0.00038356,15]
[420348830,1776007858152,-2162.85,0.00038356,15]
[420348831,1776007858174,-790.385682,0.00038356,7]
[420348832,1776007858184,-500.0,0.00038356,15]
[420348833,1776007858193,-790.385682,0.00038356,7]
[420348834,1776007858204,-500.0,0.00038356,15]
[420348835,1776007858218,-6130.61,0.00038356,14]
[420348836,1776007858228,-790.385682,0.00038356,7]
[420348837,1776007858248,-627.83,0.00038356,15]